Cogmind - Beta 14 @@@ ROGUE MODE // 2024.08.18 @ 18:30:36 Player: Daffa0360 Result: Destroyed by QC-52Z(R) with Subdweller Laser Performance ------------- Evolutions (0) 0 Regions Visited (3) 600 Robots Destroyed (14) 70 Value Destroyed (305) 305 Prototype IDs (1) 20 Alien Tech Used (0) 0 Bonus (0) 0 TOTAL SCORE: 995 Bonus ------- None Cogmind --------- Core Integrity 0/250 Matter 285/300 Energy 250/250 System Corruption 0% Temperature Cool (6) Movement Rolling (95) Location -10/Subcaves Parts ------- > --- POWER (1) -------- Ion Engine > --- PROPULSION (2) --- Wheel Subdweller Monowheel > --- UTILITY (2) ------ Small Storage Unit > --- WEAPON (2) ------- Subdweller Laser > --- INVENTORY (8) ---- Ion Engine Light Nuclear Core Compact Wheel Subdweller Monowheel Experimental Sensor Array Improved Terrain Scanner Improved Terrain Scanner Mining Laser Peak State ------------ > --- POWER ------------ Ion Engine > --- PROPULSION ------- Compact Wheel Subdweller Monowheel > --- UTILITY ---------- Small Storage Unit Experimental Sensor Array > --- WEAPON ----------- Medium Laser Subdweller Laser > --- INVENTORY -------- Ion Engine Light Nuclear Core Improved Terrain Scanner Improved Terrain Scanner Mining Laser [Rating: 18] Favorites ----------- Power Ion Engine Engine Ion Engine Power Core Light Nuclear Core Propulsion Compact Wheel Wheel Compact Wheel Utility Small Storage Unit Device Experimental Sensor Array Storage Small Storage Unit Weapon Medium Laser Energy Gun Medium Laser Ballistic Gun Assault Rifle Special Weapon Mining Laser Build | -11 -10 -10 -10 ------- Run | Yrd Mat Min Sub Slots Evolved . | . . . . Power . | . . . . Propulsion . | . . . . Utility . | . . . . Weapon . | . . . . Parts Attached 19 | 6 . 2 11 Power 3 | 1 . 1 1 Engine 2 | 1 . . 1 Core 1 | . . 1 . Reactor . | . . . . Propulsion 6 | 2 . . 4 Treads . | . . . . Leg . | . . . . Wheel 6 | 2 . . 4 Hover . | . . . . Flight . | . . . . Utility 5 | 1 . 1 3 Device 4 | . . 1 3 Storage 1 | 1 . . . Processor . | . . . . Hackware . | . . . . Protection . | . . . . Artifact . | . . . . Weapon 5 | 2 . . 3 Energy Gun 3 | 1 . . 2 Energy Cannon . | . . . . Ballistic Gun 1 | 1 . . . Ballistic Cannon . | . . . . Launcher . | . . . . Special Weapon 1 | . . . 1 Impact Weapon . | . . . . Slashing Weapon . | . . . . Piercing Weapon . | . . . . Special Melee Weapon . | . . . . Unidentified Prototypes 1 | . . . 1 Parts Lost 4 | . . . 4 Power . | . . . . Propulsion 1 | . . . 1 Utility 1 | . . . 1 Weapon 2 | . . . 2 Highest Loss Streak 2 | . . . 2 To Critical Strikes . | . . . . Average Slot Usage (%) 94 | . 85 100 93 Engine 9 | . 14 1 13 Core 4 | . . 12 . Wheel 26 | . 28 28 26 Device 10 | . . 14 10 Storage 14 | . 14 14 14 Energy Gun 20 | . 14 14 25 Ballistic Gun 7 | . 14 14 1 Peak Build Rating 18 | 6 6 10 18 Average Rating 11 | 5 6 9 15 On Entrance 5 | . 6 6 10 Naked Turns . | . . . . Heaviest Build 17 | 14 14 15 17 Greatest Support 36 | 32 32 32 36 Greatest Overweight (x) 1 | . . . 1 Average Overweight (x) . | . . . . Largest Inventory Capacity 8 | 8 8 8 8 Average Capacity 7 | 7 8 8 8 Most Carried 8 | 5 5 6 8 Average Carried 5 | 2 5 5 5 Final Capacity 8 | 8 8 8 8 Final Carried 8 | 5 5 6 8 Class Distribution -------------------- 100% | Mutant Dominant Class ---------------- Mutant | -10/Materials Mutant | -10/Mines Mutant | -10/Subcaves Resources | -11 -10 -10 -10 ----------- Run | Yrd Mat Min Sub Matter Collected 438 | 266 15 68 89 Remotely . | . . . . Salvage Created 481 | 140 86 71 184 Parts 32 | 14 6 5 7 Haulers Intercepted . | . . . . Recyclers Shooed . | . . . . Parts Field Recycled . | . . . . Retrieved Matter . | . . . . Parts Self-Destructed 3 | . . . 3 Prevented . | . . . . Kills | -11 -10 -10 -10 ------- Run | Yrd Mat Min Sub Combat Hostiles Destroyed 9 | . 4 1 4 Guns 9 | . 4 1 4 Classes Destroyed 5 | 2 2 . 1 Tunneler 4 | 3 . 1 . Recycler 1 | 1 . . . Swarmer 3 | . 3 . . Grunt 2 | . 1 1 . Subdweller 4 | . . . 4 Best Kill Streak 4 | 3 4 1 1 Combat Bots Only 4 | . 4 1 1 Max Kills in Single Turn 1 | 1 1 1 1 Gunslinging . | . . . . Exploded . | . . . . Melee . | . . . . Uniques/NPCs Destroyed . | . . . . Combat | -11 -10 -10 -10 -------- Run | Yrd Mat Min Sub Hostile Shots Fired 69 | . 23 4 42 Missed 22 | . 8 1 13 Damage Taken 803 | . 134 41 628 Core 253 | . 42 . 211 Absorbed by Shields . | . . . . Core Remaining (%) 100 | 100 . . . Volleys Fired 52 | 7 10 6 29 Largest 2 | 2 2 2 2 Hottest 110 | 70 70 70 110 Shots Fired 88 | 14 20 12 42 Gun 87 | 14 20 12 41 Cannon . | . . . . Launcher . | . . . . Special 1 | . . . 1 Kinetic 26 | 7 10 6 3 Thermal 62 | 7 10 6 39 Explosive . | . . . . Electromagnetic . | . . . . Robot Hit Streak 14 | 9 3 3 14 Robot Miss Streak 4 | 1 4 1 1 Penetration Max . | . . . . Secondary Targets 1 | . 1 . . Max Gunslinging Chain 1 | . 1 . . Shots Hit Robots 61 | 11 9 9 32 Core Hits 23 | 5 5 4 9 Critical Kills . | . . . . Critical Parts Destroyed . | . . . . Critical Strikes 1 | . . . 1 Burn 1 | . . . 1 Melee Attacks . | . . . . Impact . | . . . . Slashing . | . . . . Piercing . | . . . . Sneak Attacks . | . . . . Combat Hostiles . | . . . . Follow-up Attacks . | . . . . Damage Inflicted 850 | 128 125 119 478 Guns 850 | 128 125 119 478 Cannons . | . . . . Explosions . | . . . . Melee . | . . . . Ramming . | . . . . Kinetic 160 | 43 49 44 24 Thermal 690 | 85 76 75 454 Explosive . | . . . . Electromagnetic . | . . . . Impact . | . . . . Slashing . | . . . . Piercing . | . . . . Highest Corruption . | . . . . Average Corruption . | . . . . Corruption Purged . | . . . . Corruption Blocked . | . . . . Overload Shots . | . . . . Overflow Damage . | . . . . Projectiles . | . . . . Explosions . | . . . . Melee . | . . . . Knockbacks . | . . . . Impact . | . . . . Kinetic . | . . . . Secondary . | . . . . Self-Inflicted Damage . | . . . . Shots . | . . . . Rammed . | . . . . Targets Rammed . | . . . . Kicked . | . . . . Crushed . | . . . . Highest Temperature 117 | 36 117 45 5 Average Temperature 32 | 15 55 18 2 Received Heat Transfer 249 | . 36 45 168 Siege Activations . | . . . . Robots Corrupted . | . . . . Combat Hostiles . | . . . . Parts Fried . | . . . . Impact Corruptions . | . . . . Robots Melted . | . . . . Combat Hostiles . | . . . . Parts Melted 3 | . 1 . 2 Heat Transferred 1816 | 259 222 222 1113 Parts Sabotaged . | . . . . Parts Stolen . | . . . . Parts Stripped . | . . . . Power Chain Reactions . | . . . . Alert | -11 -10 -10 -10 ------- Run | Yrd Mat Min Sub Peak Influence 128 | 20 128 99 . Initial 49 | . 13 49 . Average 62 | 10 56 82 . Maximum Alert Level . | . . . . Low Security (%) 100 | 100 100 100 . Level 1 . | . . . . Level 2 . | . . . . Level 3 . | . . . . Level 4 . | . . . . Level 5 . | . . . . High Security . | . . . . Max Security . | . . . . Squads Dispatched 1 | . 1 . . Investigation . | . . . . Extermination . | . . . . Reinforcement 1 | . 1 . . Assault . | . . . . Garrison . | . . . . Intercept . | . . . . Searches Triggered . | . . . . Construction Impeded . | . . . . Haulers Reinforced . | . . . . Active Scanning Responses . | . . . . Cargo Convoy Interrupts . | . . . . Stealth | -11 -10 -10 -10 --------- Run | Yrd Mat Min Sub Distress Signals . | . . . . Communications Jammed . | . . . . Distress Signals . | . . . . Times Spotted 19 | . 10 2 7 Peak Tracking Total 5 | . 5 2 2 Tactical Retreats 3 | . . 1 2 Traps | -11 -10 -10 -10 ------- Run | Yrd Mat Min Sub Traps Triggered . | . . . . Indirectly . | . . . . Trap Hack Attempts . | . . . . Triggered . | . . . . Disarmed . | . . . . Reprogrammed . | . . . . Reused . | . . . . Traps Extracted . | . . . . Installed . | . . . . Triggered . | . . . . Machines | -11 -10 -10 -10 ---------- Run | Yrd Mat Min Sub Machines Disabled . | . . . . Max in Single Turn . | . . . . Machines Repaired . | . . . . Machines Dismantled . | . . . . Machines Sabotaged . | . . . . Overloaded Fab Kills . | . . . . Hacking | -11 -10 -10 -10 --------- Run | Yrd Mat Min Sub Machines Accessed 1 | . . . 1 Terminals . | . . . . Fabricators . | . . . . Repair Stations . | . . . . Recycling Units . | . . . . Scanalyzers . | . . . . Garrison Access . | . . . . Total Hacks 3 | . . . 3 Successful 3 | . . . 3 Failed . | . . . . Catastrophic . | . . . . Database Lockouts . | . . . . Manual . | . . . . Terminals . | . . . . Fabricators . | . . . . Repair Stations . | . . . . Recycling Units . | . . . . Scanalyzers . | . . . . Garrison Access . | . . . . Terminal Hacks 3 | . . . 3 Record 3 | . . . 3 Fabricator Hacks . | . . . . Repair Station Hacks . | . . . . Recycling Unit Hacks . | . . . . Scanalyzer . | . . . . Garrison Access Hacks . | . . . . Unauthorized Hacks . | . . . . Terminals . | . . . . Fabricators . | . . . . Repair Stations . | . . . . Recycling Units . | . . . . Scanalyzers . | . . . . Garrison Access . | . . . . Data Cores Recovered . | . . . . Used . | . . . . Hacking Detections . | . . . . Full Trace Events . | . . . . Feedback Events . | . . . . Feedback Blocked . | . . . . Robot Schematics Acquired . | . . . . Robots Built . | . . . . Authchips . | . . . . Time . | . . . . Total Robot Build Rating . | . . . . Part Schematics Acquired . | . . . . Parts Built . | . . . . Authchips . | . . . . Time . | . . . . Total Part Build Rating . | . . . . Parts Repaired . | . . . . Time . | . . . . Parts Recycled . | . . . . Recycled Matter . | . . . . Retrieved Matter . | . . . . Retrieved Components . | . . . . Parts Scanalyzed . | . . . . Part Schematics Acquired . | . . . . Parts Damaged . | . . . . Bothacking | -11 -10 -10 -10 ------------ Run | Yrd Mat Min Sub Used RIF Installer . | . . . . Robots Hacked . | . . . . Non-combat . | . . . . Combat . | . . . . Robot Hacks Applied . | . . . . Relay Couplers Released . | . . . . Fabnet Peak Effective % . | . . . . Robots Rewired . | . . . . Allies Hacked . | . . . . Hacks Repelled . | . . . . Allies | -11 -10 -10 -10 -------- Run | Yrd Mat Min Sub Total Allies . | . . . . Largest Group . | . . . . Highest-Rated Group . | . . . . Highest-Rated Ally . | . . . . Total Orders . | . . . . Ally Attacks . | . . . . Total Damage . | . . . . Kills . | . . . . Allies Corrupted . | . . . . Allies Melted . | . . . . Intel | -11 -10 -10 -10 ------- Run | Yrd Mat Min Sub Robot Analysis Total . | . . . . Derelict Logs Recovered 2 | . . 1 1 Drone Launches . | . . . . Drone Recoveries . | . . . . Exploration | -11 -10 -10 -10 ------------- Run | Yrd Mat Min Sub Turns Passed 1385 | 152 122 444 667 Spaces Moved 1058 | 92 90 326 550 Core 5 | 5 . . . Treads . | . . . . Legs . | . . . . Wheels 1053 | 87 90 326 550 Hover . | . . . . Flight . | . . . . Fastest Speed 50 | 50 100 100 95 Average Speed 99 | 97 100 100 100 Slowest Speed 105 | 100 100 100 105 Overloaded Moves . | . . . . Propulsion Burnouts . | . . . . Robots Hopped . | . . . . Cave-ins Triggered . | . . . . Exploration Rate (%) 32 | 4 26 71 29 Regions Visited 3 Branch Regions 2 Pre-discovered Areas . | . . . . Known Exits Taken . | . . . . Unknown Exits Taken 3 | 1 1 1 . Scrap Searched 1 | . . 1 . Spaces Dug . | . . . . Terrain Destroyed . | . . . . Melee . | . . . . Projectile . | . . . . AOE . | . . . . Terrain Rammed . | . . . . Walls Destroyed . | . . . . Machines Disabled . | . . . . Actions | -11 -10 -10 -10 --------- Run | Yrd Mat Min Sub Total 1295 | 141 102 431 621 Wait 145 | 24 3 96 22 Move 1055 | 91 89 325 550 Hop . | . . . . Pick Up 19 | 12 . 2 5 Fast Attach . | . . . . Attach 13 | 6 . 1 6 Detach 3 | . . . 3 Swap 6 | . . 1 5 Drop 2 | 1 . . 1 Fire 52 | 7 10 6 29 Melee . | . . . . Ram . | . . . . Kick . | . . . . Crush . | . . . . Escape Stasis . | . . . . Rewire . | . . . . Trap . | . . . . Miscellaneous . | . . . . Route ------- -11/Scrapyard -10/Materials -10/Mines (discovered 3 exits: [*Mat x2] / *Sub) -10/Subcaves History --------- Turn | Location | Event 21 | -11/Scrapyard | Discovered new exit (range 16) 153 | -11/Scrapyard | Entered Materials 268 | -10/Materials | Discovered new exit (range 6) 275 | -10/Materials | Entered Mines 315 | -10/Mines | Build established: Mutant 360 | -10/Mines | Discovered new exit (range 5) 401 | -10/Mines | Found a damaged Exp. Sensor Array with a note attached 403 | -10/Mines | Found Prototype Device 555 | -10/Mines | Discovered new exit (range 11) 619 | -10/Mines | Learned Materials emergency access door positions 716 | -10/Mines | Discovered new exit (range 4) 719 | -10/Mines | Entered Subcaves 786 | -10/Subcaves | Core integrity fell below 50% 818 | -10/Subcaves | Identified Exp. Sensor Array 878 | -10/Subcaves | A swath of the cavern ceiling suddenly collapsed 1000 | -10/Subcaves | Visited Clippyterm 1003 | -10/Subcaves | Learned Factory emergency access door positions 1380 | -10/Subcaves | Core integrity fell below 20% 1386 | -10/Subcaves | Destroyed by QC-52Z(R) with Subdweller Laser Last Messages --------------- Keyboard Mode). Hovering the cursor over an object also shows its Armor in the Scan window. 01116_ Subatomizers dissect the Sub. Laser. 01124_ Acquired Wheel. 01140_ Subatomizers dissect the Sub. Laser. 01222_ Sub. Monowheel shoots sparks and powers down. Overweight warning: You are carrying more than your current propulsion can efficiently support, which slows movement; see status page ('s') or the top of the parts list for the specific mass vs. support values. 01227_ Dropped Broken Sub. Monowheel. 01278_ MU-CTD(R) destroyed. 01281_ Acquired 10 matter. 01283_ Acquired Sub. Monowheel. 01285_ Acquired 10 matter. 01296_ Acquired Sub. Monowheel. 01382_ Med. Laser destroyed. Map ----- +----------------------------------------------------+ | ?# % ##"""" ## ##?????????????????????? | | % ### #??????????????????????? | | ### ?## #??????????????????????? | | ??### ### #?###??????????????????????? | | #?????###?##########??????????????????????????? | | #??????????????????????????????????????????????? | | ???????????????????????????????????????????????? | | ????????????????????????????????????????????????? | | ?????????????????????????????????????????????????? | | ?????????????????????????????????????????????????? | | ?????????????????????????????????????????????????? | | ?????????????????????????????????????????????????? | | ????????????????????????????????????????????????## | | ??????????????????????????????????????#####????## | | ??????????????????????????????????????# ###### | | ??????????????????????????????????????# # | | ?????????????????????????????????????## ^ | | ???????????????????????????????????### | | ???????????????????????????####????# ### | | ??????????????????????????## ##??### # ##?# | | ?????????????????????###?## ####"# ## #??## | | ?????????????????##### ##^ ## #??## | | ?????????????????# ^ # #??# | | ???????????????#"% R ## & #??# | | ???????????????## # ### ###%% # #??# | | ???????????????# " ###?#@#?## ###&& ######??## | | ?????????????? "??????#R#??# #????????? | | ??????????????????????? #?## ^#????????? | | ????????????????????? #??## #???????? | | ????????????????????## # ##???## #??????? | | ?????????????????????######?????###### ^ #??????? | | ?????????????????????????????????????######??????? | | ?????????????????????????????????????????????????? | | ?????????????????????????????????????????????????? | | ?????????????????????????????????????????????????? | | ?????????????????????????????????????????????????? | | ?????????????????????????????????????????????????? | | ?????????????????????????????????????????????????? | | ?????????????????????????????????????????????????? | | ?????????????????????????????????????????????????? | | ?????????????????????????????????????????????????? | | ?????????????????????????????????????????????????? | | ?????????????????????????????????????????????????? | | ?????????????????????????????????????????????????? | | ?????????????????????????????????????????????????? | | ?????????????????????????????????????????????????? | | ?????????????????????????????????????????????????? | | | | | | | +----------------------------------------------------+ Best States ------------- Heat Dissipation 25 Energy Generation 14 Energy Capacity 250 Matter Stores 300 Matter Capacity 300 Sight Range 16 Robot Scan Range 20 Terrain Scan Density 10 Evasion (%) 41 Item Schematics ----------------- None Robot Schematics ------------------ None Fabricated ------------ Nothing Alien Tech Used ----------------- None Achievements -------------- None Challenges ------------ None Game ------ Seed CompositePersonalDerivative Manual? 0 Play Time 00:18:46 Cumulative 47.4 hours Start 2024.08.18 @ 14:50:20 End 2024.08.18 @ 18:30:36 Sessions 10 Manual Loads 0 Difficulty Rogue Special Mode None Game No. 77 Rogue 73 Adventurer 4 Explorer 0 Win Type - Total 0 Types 0/0/0/0/0/0/0/0/0 Lore% 12 Gallery% 37 Achievement% 28 Wizard Run 0 Options --------- Layout 2 ASCII 0 Keyboard 0 Movement Mouse Keybinds 0 Fullscreen 2 Font 24/Smallcaps Map View 50x44 Zoom Use 10% Tactical HUD 1 Map Filters NONE Filters NONE Steam 1 RUN: 2148c189-d3f9-4366-90d9-8c83d9f78cef